fUST/lending_fUST_20250921
["ID","MTS","AMOUNT","RATE_DAILY","PERIOD"]
[386643641,1758448339806,-480.0,0.00019178,2]
[386643642,1758448339834,-480.0,0.00019178,2]
[386643643,1758448339862,-480.0,0.00019178,2]
[386643644,1758448339889,-480.0,0.00019178,2]
[386643645,1758448339917,-480.0,0.00019178,2]
[386643647,1758448349534,-480.0,0.00019178,2]
[386643648,1758448349563,-480.0,0.00019178,2]
[386643649,1758448349594,-1007.38,0.00019178,2]
[386643650,1758448349623,-514.29,0.00019178,2]
[386643651,1758448349650,-480.0,0.00019178,2]
[386643652,1758448349678,-480.0,0.00019178,2]
[386643653,1758448349706,-480.0,0.00019178,2]
[386643654,1758448349733,-480.0,0.00019178,2]
[386643655,1758448349760,-480.0,0.00019178,2]
[386643656,1758448349936,-480.0,0.00019178,2]
[386643657,1758448349964,-480.0,0.00019178,2]
[386643658,1758448349992,-480.0,0.00019178,2]
[386643659,1758448350098,-480.0,0.00019178,2]
[386643660,1758448350128,-660.16,0.00019178,2]
[386643661,1758448350157,-480.0,0.00019178,2]
[386643662,1758448350185,-480.0,0.00019178,2]
[386643663,1758448350215,-505.49,0.00019178,2]
[386643664,1758448350245,-883.88,0.00019178,2]
[386643665,1758448359579,-216.82589074,0.00019177,2]
[386643666,1758448359610,-545.5232733,0.00019177,2]
[386643667,1758448359639,-140.95,0.00019178,2]
[386643668,1758448359667,-480.0,0.00019178,2]
[386643669,1758448359699,-480.0,0.00019178,2]
[386643670,1758448359727,-480.0,0.00019178,2]
[386643671,1758448359753,-480.0,0.00019178,2]
[386643672,1758448359784,-480.0,0.00019178,2]
[386643673,1758448359812,-480.0,0.00019178,2]
[386643674,1758448359839,-480.0,0.00019178,2]
[386643675,1758448359870,-480.0,0.00019178,2]
[386643676,1758448359897,-137.01468211,0.00019178,2]
[386643679,1758448530184,-5252.74900073,0.00018225,2]
[386643680,1758448530367,-10000.01,0.00018225,2]
[386643681,1758448530756,-10000.01,0.00018225,2]
[386643682,1758448530903,-10000.01,0.00018225,2]
[386643683,1758448531033,-10000.01,0.00018225,2]
[386643684,1758448531141,-10000.01,0.00018225,2]
[386643685,1758448531245,-10000.01,0.00018225,2]
[386643688,1758448539945,-10000.01,0.00018225,2]
[386643689,1758448570166,-1198.18099927,0.00018225,2]
[386643690,1758448570194,-184.761233,0.00018226,2]
[386643691,1758448570223,-481.5779034,0.00018318,2]
[386643692,1758448570252,-666.0,0.00018353,2]
[386643693,1758448570280,-1506.1856864,0.00018353,2]
[386643694,1758448570309,-300.0,0.00019172,2]
[386643695,1758448570336,-500.0,0.00019173,2]
[386643696,1758448570457,-326.59835586,0.00019173,2]
[386643697,1758448570487,-173.40164414,0.00019173,2]
[386643698,1758448570516,-500.0,0.00019173,2]
[386643699,1758448570544,-500.0,0.00019173,2]
[386643700,1758448570573,-1200.0,0.00019176,2]
[386643701,1758448570603,-300.0,0.00019177,2]
[386643702,1758448570631,-300.0,0.00019177,2]
[386643703,1758448570659,-300.0,0.00019177,2]
[386643704,1758448570687,-500.0,0.00019177,2]
[386643705,1758448570715,-500.0,0.00019177,2]
[386643706,1758448570749,-500.0,0.00019177,2]
[386643707,1758448570840,-500.0,0.00019177,2]
[386643708,1758448570873,-500.0,0.00019177,2]
[386643709,1758448570904,-500.0,0.00019177,2]
[386643710,1758448570932,-490.90638861,0.00019177,2]
[386643711,1758448570960,-500.0,0.00019177,2]
[386643712,1758448570990,-500.0,0.00019177,2]
[386643713,1758448571019,-500.0,0.00019177,2]
[386643714,1758448571051,-500.0,0.00019177,2]
[386643715,1758448571080,-500.0,0.00019177,2]
[386643716,1758448571110,-500.0,0.00019177,2]
[386643717,1758448571393,-9.09361139,0.00019177,2]
[386643718,1758448571406,-446.52670203,0.00019177,2]
[386643719,1758448571415,-53.47329797,0.00019177,2]
[386643720,1758448571429,-18.19722278,0.00019177,2]
[386643721,1758448579837,1939.0,0.00024,30]
[386643722,1758448580012,-428.32947925,0.00019177,2]
[386643723,1758448580042,-448.18203313,0.00019177,2]
[386643724,1758448580074,-567.67139243,0.00019177,2]
[386643725,1758448580102,-157.58347293,0.00019177,2]
[386643726,1758448580131,-500.0,0.00019177,2]
[386643727,1758448580160,-500.0,0.00019177,2]
[386643728,1758448580194,-500.0,0.00019177,2]
[386643729,1758448580223,-500.0,0.00019177,2]
[386643730,1758448580253,-500.0,0.00019177,2]
[386643731,1758448580285,-500.0,0.00019177,2]
[386643732,1758448580313,-296.47724452,0.00019177,2]
[386643733,1758448580385,-203.52275548,0.00019177,2]
[386643734,1758448580413,-500.0,0.00019177,2]
[386643735,1758448580443,-500.0,0.00019177,2]
[386643736,1758448580473,-500.0,0.00019177,2]
[386643737,1758448580505,-500.0,0.00019177,2]
[386643738,1758448580534,-500.0,0.00019177,2]
[386643739,1758448580565,-500.0,0.00019177,2]
[386643740,1758448580595,-500.0,0.00019177,2]
[386643741,1758448580624,-500.0,0.00019177,2]
[386643742,1758448580652,-196.34050286,0.00019177,2]
[386643743,1758448580681,-500.0,0.00019177,2]
[386643744,1758448580817,-258.58307254,0.00019177,2]
[386643745,1758448580849,-500.0,0.00019177,2]
[386643746,1758448580878,-500.0,0.00019177,2]
[386643747,1758448580909,-500.0,0.00019177,2]
[386643748,1758448580939,-500.0,0.00019177,2]
[386643749,1758448580969,-500.0,0.00019177,2]
[386643750,1758448581001,-500.0,0.00019177,2]
[386643751,1758448581033,-500.0,0.00019177,2]
[386643752,1758448581065,-500.0,0.00019177,2]
[386643753,1758448581098,-500.0,0.00019177,2]
[386643754,1758448581546,-444.93968294,0.00019177,2]
[386643755,1758448581559,-55.06031706,0.00019177,2]
[386643756,1758448581568,-427.78353786,0.00019177,2]
[386643759,1758448600008,-748.8520209,0.00018387,2]
[386643760,1758448600040,-72.21646214,0.00019177,2]
[386643761,1758448600072,-500.0,0.00019177,2]
[386643762,1758448600104,-500.0,0.00019177,2]
[386643763,1758448600135,-500.0,0.00019177,2]
[386643764,1758448600166,-500.0,0.00019177,2]
[386643765,1758448600196,-500.0,0.00019177,2]
[386643766,1758448600222,-188.48227809,0.00019177,2]
[386643767,1758448600251,-499.99999999,0.00019177,2]
[386643768,1758448600280,-239.3823077,0.00019178,2]
[386643769,1758448600307,-480.0,0.00019178,2]
[386643770,1758448600336,-62.14386236,0.00019178,2]
[386643771,1758448600428,-417.85613764,0.00019178,2]
[386643772,1758448600455,-480.0,0.00019178,2]
[386643773,1758448600484,-480.0,0.00019178,2]
[386643774,1758448600512,-480.0,0.00019178,2]
[386643775,1758448600540,-480.0,0.00019178,2]
[386643776,1758448600568,-480.0,0.00019178,2]
[386643777,1758448600595,-480.0,0.00019178,2]
[386643778,1758448600621,-481.31608615,0.00019178,2]
[386643779,1758448600648,-486.38386401,0.00019178,2]
[386643780,1758448600676,-480.0,0.00019178,2]
[386643781,1758448600809,-8.8978244,0.00019178,2]
[386643782,1758448601091,-417.85613764,0.00019178,2]
[386643783,1758448601105,-73.24603796,0.00019178,2]
[386643784,1758448601114,-426.75396204,0.00019178,2]
[386643785,1758448610076,-73.24603796,0.00019178,2]
[386643786,1758448610110,-500.0,0.00019178,2]
[386643787,1758448610142,-500.0,0.00019178,2]
[386643788,1758448610172,-500.0,0.00019178,2]
[386643789,1758448610203,-500.0,0.00019178,2]
[386643790,1758448610232,-303.62836985,0.00019178,2]
[386643791,1758448610267,-500.0,0.00019178,2]
[386643792,1758448610308,-500.0,0.00019178,2]
[386643793,1758448610338,-480.0,0.00019178,2]
[386643794,1758448610369,-480.0,0.00019178,2]
[386643795,1758448610398,-480.0,0.00019178,2]
[386643796,1758448610620,-20.0,0.00019178,2]
[386643797,1758448610646,-366.26118438,0.00019178,2]
[386643798,1758448630232,-217.55534118,0.00019078,2]
[386643799,1758448630261,-557.38,0.00019168,3]
[386643800,1758448630290,-300.0,0.00019177,2]
[386643801,1758448630319,-93.73881562,0.00019178,2]
[386643802,1758448630349,-504.80844894,0.00019178,2]
[386643803,1758448630376,-480.0,0.00019178,2]
[386643804,1758448630404,-480.0,0.00019178,2]
[386643805,1758448630432,-480.0,0.00019178,2]
[386643806,1758448630460,-480.0,0.00019178,2]
[386643807,1758448630488,-480.0,0.00019178,2]
[386643808,1758448630515,-480.0,0.00019178,2]
[386643809,1758448630544,-413.04478852,0.00019178,2]
[386643810,1758448630723,-66.95521148,0.00019178,2]
[386643811,1758448640191,-431.69,0.00019168,3]
[386643812,1758448640219,-792.0,0.00019177,2]
[386643813,1758448640247,-480.0,0.00019178,2]
[386643814,1758448640274,-480.0,0.00019178,2]
[386643815,1758448640303,-480.0,0.00019178,2]
[386643816,1758448640332,-480.0,0.00019178,2]
[386643817,1758448640360,-480.0,0.00019178,2]
[386643818,1758448640388,-480.0,0.00019178,2]
[386643819,1758448640416,-480.0,0.00019178,2]
[386643820,1758448640447,-352.63,0.00019178,2]
[386643821,1758448640585,-127.37,0.00019178,2]
[386643822,1758448650172,-520.0,0.00019178,3]
[386643823,1758448650200,-482.71331068,0.00019178,2]
[386643824,1758448650228,-404.24742074,0.00019178,2]
[386643825,1758448650257,-480.0,0.00019178,2]
[386643826,1758448650285,-515.93762231,0.00019178,2]
[386643827,1758448650315,-480.0,0.00019178,2]
[386643828,1758448650344,-480.0,0.00019178,2]
[386643829,1758448650372,-480.0,0.00019178,2]
[386643830,1758448650399,-480.0,0.00019178,2]
[386643831,1758448650427,-480.0,0.00019178,2]
[386643832,1758448650580,-394.21329254,0.00019178,2]
[386643833,1758448660198,-39.74108842,0.00019178,2]
[386643834,1758448660227,-485.19929064,0.00019178,2]
[386643835,1758448660256,-480.0,0.00019178,2]
[386643836,1758448660283,-200.0,0.00019178,2]
[386643837,1758448660313,-1588.24,0.00019178,2]
[386643838,1758448660343,-480.0,0.00019178,2]
[386643839,1758448660371,-480.0,0.00019178,2]
[386643840,1758448660400,-480.0,0.00019178,2]
[386643841,1758448660428,-465.69565568,0.00019178,2]
[386643842,1758448660456,-110.38350216,0.00019178,2]
[386643843,1758448660595,-381.4909262,0.00019178,2]
[386643844,1758448741916,13514.0557114,0.00029205,120]
[386643845,1758448771809,-295.50972947,0.00018177,2]
[386643846,1758448775053,-147.66015953,0.00018177,2]
[386643847,1758448779248,-339.11241727,0.00018177,2]
[386643848,1758448781496,-183.36131143,0.00018177,2]
[386643849,1758448786625,-181.54300273,0.00018177,2]
[386643850,1758448789783,-293.64853425,0.00018177,2]
[386643851,1758448791172,-160.0,0.00018177,2]
[386643852,1758448792703,-177.87262455,0.00018177,2]
[386643853,1758448797677,-170.69563104,0.00018177,2]
[386643854,1758448800731,-187.55991962,0.00018177,2]
[386643855,1758448802818,-548.38466613,0.00018177,2]
[386643856,1758448804252,-227.49182097,0.00018177,2]
[386643857,1758448809922,-186.1249531,0.00018177,2]
[386643858,1758448810713,-2658.64833109,0.00018177,2]
[386643859,1758448810737,-4682.71333782,0.00018177,2]
[386643860,1758448820648,-151.09476238,0.00018692,2]
[386643861,1758448820675,-194.99418019,0.00019068,2]
[386643862,1758448820705,-1200.0,0.00019166,2]
[386643864,1758448855829,-500.0,0.00019165,2]
[386643865,1758448855858,-500.0,0.00019165,2]
[386643866,1758448855886,-500.0,0.00019165,2]
[386643867,1758448855917,-500.0,0.00019165,2]
[386643868,1758448855947,-240.66772822,0.00019165,2]
[386643869,1758448855978,-500.0,0.00019165,2]
[386643870,1758448856008,-366.46450405,0.00019165,2]
[386643871,1758448856039,-500.0,0.00019165,2]
[386643872,1758448856070,-321.46000156,0.00019165,2]
[386643873,1758448856101,-180.97600776,0.00019165,2]
[386643874,1758448856366,-1780.87351682,0.00019166,2]
[386643875,1758448856398,-10000.01,0.00019166,2]
[386643876,1758448864684,-332.58527821,0.000182,2]
[386643877,1758448867838,-167.41472179,0.000182,2]
[386643879,1758448915965,-10000.01,0.00018873,2]
[386643880,1758448916089,-3510.0506821,0.00018873,2]
[386643881,1758448916114,-2979.9086358,0.00018873,2]
[386643883,1758448992220,-163.56129368,0.00018174,2]
[386643884,1758448995181,-311.82209789,0.00018174,2]
[386643885,1758449005798,-179.28740599,0.00018174,2]
[386643886,1758449007188,-286.28472791,0.00018174,2]
[386643887,1758449009290,-153.53110897,0.00018174,2]
[386643888,1758449011729,-233.33679473,0.00018174,2]
[386643889,1758449013589,-263.95162424,0.00018174,2]
[386643890,1758449015964,-196.23003166,0.00018174,2]
[386643891,1758449018522,-194.09381965,0.00018174,2]
[386643892,1758449022654,-204.25661415,0.00018174,2]
[386643893,1758449025910,-195.39741264,0.00018174,2]
[386643894,1758449027368,-179.9640072,0.00018174,2]
[386643895,1758449029876,-354.94665699,0.00018174,2]
[386643896,1758449032441,-195.11545431,0.00018174,2]
[386643897,1758449035612,-307.29207913,0.00018174,2]
[386643898,1758449037094,-185.23960757,0.00018174,2]
[386643899,1758449039080,-300.0,0.00018174,2]
[386643900,1758449047044,-212.68188202,0.00018174,2]
[386643901,1758449048936,-152.69957321,0.00018174,2]
[386643902,1758449050923,-361.30042679,0.00018174,2]
[386643903,1758449052942,-375.96904795,0.00018174,2]
[386643904,1758449055438,-152.0,0.00018174,2]
[386643905,1758449057440,-191.01867633,0.00018174,2]
[386643906,1758449059659,-169.45878191,0.00018174,2]
[386643907,1758449063451,-209.24944011,0.00018174,2]
[386643908,1758449065451,-231.06017,0.00018174,2]
[386643910,1758449070347,-189.88187291,0.00018174,2]
[386643911,1758449073477,-203.61893209,0.00018174,2]
[386643912,1758449074939,-152.0,0.00018174,2]
[386643913,1758449076895,-168.0,0.00018174,2]
[386643914,1758449078927,-55.18254117,0.00018174,2]
[386643915,1758449092257,-252.64261313,0.00018171,2]
[386643916,1758449094291,-199.37744811,0.00018171,2]
[386643917,1758449097474,-224.73210151,0.00018171,2]
[386643918,1758449103012,-190.77580802,0.00018171,2]
[386643919,1758449104979,-132.47202923,0.00018171,2]
[386643921,1758449116377,-500.0,0.000182,2]
[386643922,1758449116404,-500.0,0.000182,2]
[386643923,1758449116431,-500.0,0.000182,2]
[386643924,1758449116470,-500.0,0.000182,2]
[386643925,1758449116504,-1200.0,0.00019163,2]
[386643926,1758449116534,-160.0,0.00019163,2]
[386643927,1758449116564,-417.15472785,0.00019164,2]
[386643928,1758449116596,-160.0,0.00019164,2]
[386643929,1758449116627,-300.0,0.00019165,2]
[386643930,1758449116783,-2192.32163571,0.00019166,2]
[386643931,1758449116813,-2686.55384533,0.00019168,2]
[386643932,1758449117117,-242.25903792,0.00019168,2]
[386643933,1758449117127,-1525.7005443,0.00019168,3]
[386643938,1758449279444,-227.90040556,0.00018174,2]
[386643939,1758449282663,-228.93714123,0.00018174,2]
[386643940,1758449284109,-291.45560762,0.00018174,2]
[386643941,1758449291367,-328.02936725,0.00018174,2]
[386643942,1758449295357,-185.05032913,0.00018174,2]
[386643943,1758449301664,-185.07810542,0.00018174,2]
[386643944,1758449304123,-313.47421691,0.00018174,2]
[386643945,1758449307126,-208.05480322,0.00018174,2]
[386643946,1758449310357,-115.31545116,0.00018174,2]
[386643947,1758449356034,-217.73701498,0.00018174,2]
[386643948,1758449359145,-248.47899204,0.00018174,2]
[386643949,1758449361701,-190.73014983,0.00018174,2]
[386643950,1758449363117,-1836.55687508,0.00018174,2]
[386643952,1758449364369,1747.60264,0.00027397,120]
[386643953,1758449364587,-152.51896123,0.00018174,2]
[386643954,1758449366134,-304.40909208,0.00018172,2]
[386643955,1758449367022,-361.59090792,0.00018172,2]
[386643956,1758449367051,-794.90896934,0.00018174,2]
[386643957,1758449367078,-338.55884277,0.000182,2]
[386643958,1758449367106,-240.86151903,0.000182,2]
[386643959,1758449367183,-6528.16952188,0.000182,2]
[386643960,1758449367272,-10000.01,0.000182,2]
[386643961,1758449370148,-274.939,0.000182,2]
[386643972,1758449431927,-880.73561996,0.000182,2]
[386643973,1758449431937,-300.0,0.00019077,2]
[386643974,1758449431946,-1200.0,0.00019077,2]
[386643975,1758449431956,-9243.05746668,0.00019078,2]
[386643976,1758449431965,-160.0,0.00019163,2]
[386643977,1758449431975,-160.0,0.00019163,2]
[386643978,1758449431984,-240.93792652,0.00019166,2]
[386643979,1758449431994,-1200.0,0.00019167,2]
[386643980,1758449432003,-775.7294557,0.00019168,3]
[386643981,1758449432012,-1150.72,0.00019168,3]
[386643982,1758449432023,-575.36,0.00019168,3]
[386643983,1758449432032,-287.68,0.00019168,3]
[386643984,1758449432041,-863.04,0.00019168,3]
[386643985,1758449432051,-500.0,0.00019173,2]
[386643986,1758449432060,-500.0,0.00019173,2]
[386643987,1758449432070,-4796.6768472,0.00019177,2]
[386643988,1758449432079,-208.15584351,0.00019177,2]
[386643989,1758449432089,-480.0,0.00019178,2]
[386643990,1758449432098,-488.51102125,0.00019178,2]
[386643991,1758449432107,-480.0,0.00019178,2]
[386643992,1758449432116,-480.0,0.00019178,2]
[386643993,1758449432125,-480.0,0.00019178,2]
[386643994,1758449432135,-480.0,0.00019178,2]
[386643995,1758449432145,-391.49754381,0.00019178,2]
[386643996,1758449432154,-480.0,0.00019178,2]
[386643997,1758449432164,-480.0,0.00019178,2]
[386643998,1758449432173,-522.95072412,0.00019178,2]
[386643999,1758449432183,-4870.99355162,0.00019178,2]
[386644000,1758449432199,-1166.80029938,0.00019178,2]
[386644001,1758449432209,-482.24411266,0.00019178,2]
[386644002,1758449432218,-480.0,0.00019178,2]
[386644003,1758449432228,-485.88577112,0.00019178,2]
[386644004,1758449432238,-480.0,0.00019178,2]
[386644005,1758449432248,-295.55875626,0.00019178,2]
[386644006,1758449432257,-480.0,0.00019178,2]
[386644007,1758449432267,-480.0,0.00019178,2]
[386644008,1758449432277,-480.0,0.00019178,2]
[386644010,1758449432287,-480.0,0.00019178,2]
[386644012,1758449432296,-480.0,0.00019178,2]
[386644014,1758449432305,-480.0,0.00019178,2]
[386644015,1758449432314,-480.0,0.00019178,2]
[386644027,1758449432432,-480.0,0.00019178,2]
[386644029,1758449432442,-480.0,0.00019178,2]
[386644031,1758449432452,-480.0,0.00019178,2]
[386644033,1758449432462,-234.58168419,0.00019178,2]
[386644106,1758449437666,-176.23509943,0.00019176,2]
[386644107,1758449437676,-207.28241023,0.00019176,2]
[386644108,1758449437686,-147.73279961,0.00019178,2]
[386644114,1758449437807,-97.6855162,0.00019178,2]
[386644116,1758449437816,-480.0,0.00019178,2]
[386644118,1758449437826,-480.0,0.00019178,2]
[386644119,1758449437835,-480.0,0.00019178,2]
[386644121,1758449437844,-480.0,0.00019178,2]
[386644123,1758449437854,-482.22440863,0.00019178,2]
[386644125,1758449437863,-483.18176845,0.00019178,2]
[386644126,1758449437872,-469.76664891,0.00019178,2]
[386644128,1758449437881,-480.0,0.00019178,2]
[386644129,1758449437890,-480.0,0.00019178,2]
[386644130,1758449437900,-480.0,0.00019178,2]
[386644131,1758449437909,-480.0,0.00019178,2]
[386644132,1758449437918,-480.0,0.00019178,2]
[386644133,1758449437929,-379.58325752,0.00019178,2]
[386644134,1758449437938,-480.0,0.00019178,2]
[386644135,1758449437948,-480.72163681,0.00019178,2]
[386644136,1758449437957,-480.0,0.00019178,2]
[386644137,1758449437966,-481.52731698,0.00019178,2]
[386644138,1758449437976,-480.0,0.00019178,2]
[386644139,1758449437986,-480.0,0.00019178,2]
[386644140,1758449437995,-480.0,0.00019178,2]
[386644141,1758449438007,-480.0,0.00019178,2]
[386644142,1758449438016,-611.23698426,0.00019178,2]
[386644143,1758449438025,-480.0,0.00019178,2]
[386644144,1758449438034,-480.0,0.00019178,2]
[386644145,1758449438044,-483.49228185,0.00019178,2]
[386644146,1758449438053,-480.0,0.00019178,2]
[386644147,1758449438062,-1000.0,0.00019178,2]
[386644148,1758449438072,-480.0,0.00019178,2]
[386644149,1758449438082,-480.0,0.00019178,2]
[386644150,1758449438091,-480.0,0.00019178,2]
[386644151,1758449438101,-480.0,0.00019178,2]
[386644152,1758449438111,-489.87735289,0.00019178,2]
[386644153,1758449438120,-480.0,0.00019178,2]
[386644154,1758449438130,-480.0,0.00019178,2]
[386644155,1758449438139,-480.88998327,0.00019178,2]
[386644156,1758449438148,-500.0,0.00019178,2]
[386644157,1758449438157,-500.0,0.00019178,2]
[386644158,1758449438167,-500.0,0.00019178,2]
[386644159,1758449438176,-500.0,0.00019178,2]
[386644160,1758449438185,-500.0,0.00019178,2]
[386644161,1758449438194,-500.0,0.00019178,2]
[386644162,1758449438202,-500.0,0.00019178,2]
[386644163,1758449438212,-500.0,0.00019178,2]
[386644164,1758449438221,-480.0,0.00019178,2]
[386644165,1758449438230,-480.0,0.00019178,2]
[386644166,1758449438239,-480.0,0.00019178,2]
[386644167,1758449438248,-480.0,0.00019178,2]
[386644168,1758449438257,-488.27957429,0.00019178,2]
[386644169,1758449438267,-480.0,0.00019178,2]
[386644170,1758449438276,-598.48074513,0.00019178,2]
[386644171,1758449438285,-480.0,0.00019178,2]
[386644172,1758449438294,-480.0,0.00019178,2]
[386644173,1758449438303,-480.0,0.00019178,2]
[386644174,1758449438313,-174.71216148,0.00019178,2]
[386644175,1758449438322,-480.0,0.00019178,2]
[386644176,1758449438331,-480.0,0.00019178,2]
[386644177,1758449438340,-480.0,0.00019178,2]
[386644178,1758449438350,-480.0,0.00019178,2]
[386644179,1758449438359,-480.0,0.00019178,2]
[386644180,1758449438368,-480.0,0.00019178,2]
[386644181,1758449438378,-480.0,0.00019178,2]
[386644182,1758449438388,-480.0,0.00019178,2]
[386644183,1758449438397,-383.58696214,0.00019178,2]
[386644184,1758449438406,-484.61679755,0.00019178,2]
[386644185,1758449438417,-480.0,0.00019178,2]
[386644186,1758449438426,-480.0,0.00019178,2]
[386644188,1758449438436,-452.47414476,0.00019178,2]
[386644189,1758449438445,-482.1615795,0.00019178,2]
[386644190,1758449438455,-480.0,0.00019178,2]
[386644191,1758449438464,-480.0,0.00019178,2]
[386644192,1758449438473,-480.0,0.00019178,2]
[386644193,1758449438484,-480.0,0.00019178,2]
[386644194,1758449438493,-480.0,0.00019178,2]
[386644195,1758449438502,-506.20285795,0.00019178,2]
[386644196,1758449438511,-480.0,0.00019178,2]
[386644197,1758449438521,-480.0,0.00019178,2]
[386644198,1758449438530,-480.0,0.00019178,2]
[386644199,1758449438539,-480.0,0.00019178,2]
[386644200,1758449438548,-480.0,0.00019178,2]
[386644201,1758449438557,-241.68324044,0.00019178,2]
[386644202,1758449438567,-480.0,0.00019178,2]
[386644203,1758449438576,-480.0,0.00019178,2]
[386644204,1758449438586,-480.0,0.00019178,2]
[386644205,1758449438595,-480.0,0.00019178,2]
[386644206,1758449438604,-480.0,0.00019178,2]
[386644207,1758449438613,-480.0,0.00019178,2]
[386644208,1758449438622,-480.0,0.00019178,2]
[386644209,1758449438632,-480.0,0.00019178,2]
[386644210,1758449438640,-480.0,0.00019178,2]
[386644211,1758449438650,-480.0,0.00019178,2]
[386644212,1758449438659,-480.0,0.00019178,2]
[386644213,1758449438667,-480.0,0.00019178,2]
[386644214,1758449438677,-480.0,0.00019178,2]
[386644215,1758449438686,-480.0,0.00019178,2]
[386644216,1758449438695,-480.0,0.00019178,2]
[386644217,1758449438705,-480.0,0.00019178,2]
[386644218,1758449438714,-480.0,0.00019178,2]
[386644219,1758449438723,-480.0,0.00019178,2]
[386644220,1758449438829,-480.0,0.00019178,2]
[386644221,1758449438839,-480.0,0.00019178,2]
[386644222,1758449438850,-244.09915608,0.00019178,2]
[386644223,1758449438859,-480.0,0.00019178,2]
[386644224,1758449438868,-480.0,0.00019178,2]
[386644225,1758449438877,-480.0,0.00019178,2]
[386644226,1758449438886,-480.0,0.00019178,2]
[386644227,1758449438895,-480.0,0.00019178,2]
[386644228,1758449438904,-480.0,0.00019178,2]
[386644229,1758449438914,-480.0,0.00019178,2]
[386644230,1758449438923,-480.0,0.00019178,2]
[386644231,1758449438932,-480.0,0.00019178,2]
[386644232,1758449438943,-480.0,0.00019178,2]
[386644233,1758449438952,-480.0,0.00019178,2]
[386644234,1758449438961,-496.44690182,0.00019178,2]
[386644235,1758449438971,-480.0,0.00019178,2]
[386644236,1758449438981,-150.0,0.00019178,2]
[386644237,1758449438990,-481.52972941,0.00019178,2]
[386644238,1758449439000,-480.0,0.00019178,2]
[386644239,1758449439011,-480.0,0.00019178,2]
[386644240,1758449439020,-482.23872783,0.00019178,2]
[386644241,1758449439030,-480.0,0.00019178,2]
[386644242,1758449439040,-480.0,0.00019178,2]
[386644243,1758449439050,-480.0,0.00019178,2]
[386644244,1758449439059,-480.0,0.00019178,2]
[386644245,1758449439069,-480.0,0.00019178,2]
[386644246,1758449439079,-486.29317502,0.00019178,2]
[386644247,1758449439089,-480.0,0.00019178,2]
[386644248,1758449439098,-498.90486648,0.00019178,2]
[386644249,1758449439108,-480.0,0.00019178,2]
[386644250,1758449439117,-484.08756932,0.00019178,2]
[386644251,1758449439127,-480.0,0.00019178,2]
[386644252,1758449439136,-480.0,0.00019178,2]
[386644253,1758449439149,-480.0,0.00019178,2]
[386644254,1758449439158,-480.0,0.00019178,2]
[386644255,1758449439168,-480.0,0.00019178,2]
[386644256,1758449439178,-480.0,0.00019178,2]
[386644257,1758449439187,-1000.0,0.00019178,2]
[386644258,1758449439197,-480.0,0.00019178,2]
[386644259,1758449439206,-233.41579575,0.00019178,2]
[386644260,1758449439216,-480.0,0.00019178,2]
[386644261,1758449439225,-480.0,0.00019178,2]
[386644262,1758449439235,-480.0,0.00019178,2]
[386644263,1758449439244,-480.0,0.00019178,2]
[386644264,1758449439254,-480.0,0.00019178,2]
[386644265,1758449439263,-480.0,0.00019178,2]
[386644266,1758449439272,-480.0,0.00019178,2]
[386644267,1758449439282,-480.0,0.00019178,2]
[386644268,1758449439293,-480.0,0.00019178,2]